Workbook

Sheet Sheet1
B1: Max gross weight | D1: 2300 | E1: lbs
B3: Arm Calculation table
B4: Location | D4: Weight (lbs) | E4: Arm (in) | F4: Moment (in-lb)
B5: Plane | D5: 1470.26 | E5: 39.08 | F5: =D5*E5 -> 57457.8
B6: Pilot | D6: 185 | E6: 37 | F6: =D6*E6 -> 6845.0
B7: Front Passenger | D7: 140 | E7: 37 | F7: =D7*E7 -> 5180.0
B8: Rear Passengers | D8: 0 | E8: 73 | F8: 0.0
B9: Aft Baggage | D9: 5 | E9: 123 | F9: 615.0
B10: Fuel | C10: 40 | D10: =SUM(C10*6) -> 240 | E10: 47.9 | F10: =D10*E10 -> 11496.0
B11: Totals | D11: =SUM(D5:D10) -> 2040.26 | E11: =F11/D11 -> 39.99 | F11: =SUM(F5:F10) -> 81593.8
B12: No Fuel | D12: =SUM(D11-D10) -> 1800.26 | E12: =F12/D12 -> 38.94 | F12: =SUM(F11-F10) -> 70097.8
B14: Useful Load | D14: =D1-D5 -> 829.74
D16: Graph Data
D17: Inches | E17: Weight
D18: 35 | E18: 1500
D19: 35 | E19: 1950
D20: 38.5 | E20: 2300
D21: 47.2 | E21: 2300
D22: 47.2 | E22: 2300
D23: 47.2 | E23: 2300
D24: 47.2 | E24: 1500
D28: Max Weight
B29: Baggage area 1 | D29: 120lbs
B30: Baggage area 2 | D30: 50lbs | J30: Weight at Take off
B31: Baggage area 1 + 2 | D31: 120lbs | K31: Plane | L31: =SUM(D5) -> 1470.26
J32: Pilot/Front | K32: Passenger | L32: =SUM(D6:D7) -> 325
J33: Aft | K33: Passengers | L33: =SUM(D8) -> 0
J34: =SUM(C10) -> 40 | K34: Gal of Fuel | L34: =SUM(D10) -> 240
J35: Aft | K35: Baggage | L35: =SUM(D9) -> 5
K36: Total | L36: =SUM(D11) -> 2040.26

Sheet Sheet2

Sheet Sheet3
